fUSD/lending_fUSD_20241026
["ID","MTS","AMOUNT","RATE_DAILY","PERIOD"]
[340857098,1729950652520,-500.0,0.00055342,120]
[340857099,1729950652529,-510.24454612,0.00055342,120]
[340857100,1729950652539,-500.0,0.00055342,120]
[340857101,1729950652547,-500.0,0.00055342,120]
[340857102,1729950652557,-434.24389334,0.00055342,120]
[340857103,1729950652566,-500.0,0.00055342,25]
[340857104,1729950652575,-505.69848208,0.00055342,120]
[340857105,1729950652585,-500.0,0.00055342,120]
[340857106,1729950652594,-500.0,0.00055342,120]
[340857107,1729950652603,-500.0,0.00055342,120]
[340857108,1729950652613,-500.0,0.00055342,120]
[340857109,1729950652624,-500.0,0.00055342,120]
[340857110,1729950652634,-500.0,0.00055342,120]
[340857111,1729950652643,-500.0,0.00055342,120]
[340857112,1729950652652,-500.0,0.00055342,120]
[340857113,1729950652662,-500.0,0.00055342,120]
[340857114,1729950652673,-500.0,0.00055342,120]
[340857115,1729950652682,-500.0,0.00055342,120]
[340857116,1729950652691,-500.0,0.00055342,120]
[340857117,1729950652700,-500.0,0.00055342,120]
[340857118,1729950652710,-500.0,0.00055342,120]
[340857119,1729950652719,-500.0,0.00055342,120]
[340857120,1729950652728,-1000.0,0.00055342,120]
[340857121,1729950652740,-500.0,0.00055342,120]
[340857122,1729950652750,-500.0,0.00055342,120]
[340857123,1729950652759,-500.0,0.00055342,120]
[340857124,1729950652769,-500.0,0.00055342,120]
[340857125,1729950652779,-500.0,0.00055342,120]
[340857126,1729950652788,-500.0,0.00055342,2]
[340857127,1729950652798,-169.14671846,0.00055342,120]
[340857128,1729950652807,-160.95561284,0.00055342,120]
[340857129,1729950652816,-1062.59,0.00055342,120]
[340857130,1729950652826,-500.0,0.00055342,120]
[340857131,1729950652835,-500.0,0.00055342,120]
[340857132,1729950652844,-500.0,0.00055342,120]
[340857133,1729950652854,-500.0,0.00055342,120]
[340857134,1729950652863,-500.0,0.00055342,120]
[340857135,1729950652873,-500.0,0.00055342,120]
[340857136,1729950652882,-500.0,0.00055342,120]
[340857137,1729950652892,-500.0,0.00055342,120]
[340857138,1729950652901,-510.93241463,0.00055342,120]
[340857139,1729950652910,-500.0,0.00055342,120]
[340857140,1729950652919,-1368.19,0.00055342,120]
[340857141,1729950652928,-500.0,0.00055342,120]
[340857142,1729950652937,-1822.42,0.00055342,120]
[340857143,1729950652947,-500.0,0.00055342,120]
[340857144,1729950652956,-875.75,0.00055342,120]
[340857145,1729950652965,-2994.32,0.00055342,120]
[340857146,1729950652976,-500.0,0.00055342,120]
[340857147,1729950652985,-500.0,0.00055342,120]
[340857148,1729950652994,-500.0,0.00055342,120]
[340857149,1729950653003,-1119.44,0.00055342,120]
[340857150,1729950653014,-500.0,0.00055342,120]
[340857151,1729950653027,-500.0,0.00055342,120]
[340857152,1729950653037,-544.08501232,0.00055342,120]
[340857153,1729950653047,-500.0,0.00055342,120]
[340857154,1729950653056,-535.46637493,0.00055342,120]
[340857155,1729950653066,-500.0,0.00055342,120]
[340857156,1729950653075,-500.0,0.00055342,120]
[340857157,1729950653084,-1723.29,0.00055342,120]
[340857158,1729950653095,-500.0,0.00055342,120]
[340857159,1729950653105,-332.16440163,0.00055342,120]
[340857160,1729950653114,-500.0,0.00055342,120]
[340857161,1729950653124,-500.0,0.00055342,120]
[340857162,1729950653133,-853.38,0.00055342,21]
[340857163,1729950653142,-1000.0,0.00055342,120]
[340857164,1729950653152,-509.79572134,0.00055342,120]
[340857165,1729950653162,-500.0,0.00055342,120]
[340857166,1729950653172,-500.0,0.00055342,120]
[340857167,1729950653182,-500.0,0.00055342,120]
[340857168,1729950653192,-500.0,0.00055342,120]
[340857169,1729950653202,-500.0,0.00055342,120]
[340857170,1729950653213,-500.0,0.00055342,120]
[340857171,1729950653223,-500.0,0.00055342,120]
[340857172,1729950653234,-500.0,0.00055342,120]
[340857173,1729950653244,-500.0,0.00055342,120]
[340857174,1729950653254,-500.0,0.00055342,120]
[340857175,1729950653264,-500.0,0.00055342,120]
[340857176,1729950653274,-402.55821042,0.00055342,120]
[340857177,1729950653283,-500.0,0.00055342,120]
[340857178,1729950653293,-210.84868477,0.00055342,120]
[340857179,1729950653303,-500.0,0.00055342,120]
[340857180,1729950653312,-500.0,0.00055342,120]
[340857181,1729950653322,-500.0,0.00055342,120]
[340857182,1729950653331,-500.0,0.00055342,120]
[340857183,1729950653340,-557.62580399,0.00055342,120]
[340857184,1729950653349,-231.91508984,0.00055342,120]
[340857185,1729950653358,-500.0,0.00055342,120]
[340857186,1729950653367,-500.0,0.00055342,120]
[340857187,1729950653377,-500.0,0.00055342,120]
[340857188,1729950653386,-500.0,0.00055342,120]
[340857189,1729950653395,-531.61629739,0.00055342,120]
[340857190,1729950653404,-500.0,0.00055342,120]
[340857191,1729950653413,-500.0,0.00055342,120]
[340857192,1729950653424,-5331.28,0.00055342,120]
[340857193,1729950653434,-334.68816146,0.00055342,120]
[340857194,1729950653444,-517.67572472,0.00055342,120]
[340857195,1729950653454,-500.0,0.00055342,120]
[340857196,1729950653549,-500.0,0.00055342,120]
[340857197,1729950653559,-500.0,0.00055342,120]
[340857198,1729950653569,-500.0,0.00055342,120]
[340857199,1729950653578,-500.0,0.00055342,120]
[340857200,1729950653588,-500.0,0.00055342,120]
[340857201,1729950653598,-500.0,0.00055342,120]
[340857202,1729950653608,-258.72284557,0.00055342,120]
[340857203,1729950653620,-755.58,0.00055342,120]
[340857204,1729950653630,-500.0,0.00055342,120]
[340857205,1729950653641,-500.0,0.00055342,120]
[340857206,1729950653651,-500.0,0.00055342,120]
[340857207,1729950653660,-1730.63,0.00055342,120]
[340857208,1729950653670,-500.0,0.00055342,120]
[340857209,1729950653680,-500.0,0.00055342,120]
[340857210,1729950653689,-916.92,0.00055342,3]
[340857211,1729950653698,-500.0,0.00055342,120]
[340857212,1729950653707,-274.06975219,0.00055342,120]
[340857213,1729950653717,-894.21,0.00055342,120]
[340857214,1729950653726,-500.0,0.00055342,120]
[340857215,1729950653736,-500.0,0.00055342,120]
[340857216,1729950653746,-500.0,0.00055342,120]
[340857217,1729950653754,-622.56030398,0.00055342,120]
[340857218,1729950653764,-542.39653444,0.00055342,7]
[340857219,1729950653773,-500.0,0.00055342,120]
[340857220,1729950653782,-2988.0,0.00055342,120]
[340857221,1729950653791,-500.0,0.00055342,120]
[340857222,1729950653801,-500.0,0.00055342,120]
[340857223,1729950653811,-500.0,0.00055342,120]
[340857224,1729950653821,-500.0,0.00055342,120]
[340857225,1729950653831,-500.0,0.00055342,120]
[340857226,1729950653840,-500.0,0.00055342,120]
[340857227,1729950653850,-500.0,0.00055342,120]
[340857228,1729950653859,-523.17238129,0.00055342,120]
[340857229,1729950653870,-500.0,0.00055342,120]
[340857230,1729950653879,-500.0,0.00055342,120]
[340857231,1729950653888,-500.0,0.00055342,120]
[340857232,1729950653898,-500.0,0.00055342,120]
[340857233,1729950653907,-647.47438652,0.00055342,120]
[340857234,1729950653917,-500.0,0.00055342,120]
[340857235,1729950653926,-536.99773065,0.00055342,120]
[340857236,1729950653935,-500.0,0.00055342,120]
[340857237,1729950653945,-500.0,0.00055342,120]
[340857238,1729950653954,-169.31512043,0.00055342,120]
[340857239,1729950653963,-500.0,0.00055342,120]
[340857240,1729950653973,-572.03784467,0.00055342,120]
[340857241,1729950653982,-960.37,0.00055342,120]
[340857242,1729950653991,-1175.82,0.00055342,120]
[340857243,1729950654001,-604.4,0.00055342,120]
[340857244,1729950654010,-500.0,0.00055342,120]
[340857245,1729950654023,-500.0,0.00055342,120]
[340857246,1729950654033,-500.0,0.00055342,120]
[340857247,1729950654043,-500.0,0.00055342,120]
[340857248,1729950654052,-500.0,0.00055342,120]
[340857249,1729950654063,-500.0,0.00055342,120]
[340857250,1729950654072,-531.66157029,0.00055342,120]
[340857251,1729950654082,-175.65702149,0.00055342,120]
[340857252,1729950654092,-500.0,0.00055342,120]
[340857253,1729950654102,-500.0,0.00055342,120]
[340857254,1729950654112,-1000.0,0.00055342,120]
[340857255,1729950654123,-500.0,0.00055342,120]
[340857256,1729950654133,-500.0,0.00055342,120]
[340857257,1729950654142,-2385.55,0.00055342,120]
[340857258,1729950654152,-510.10598365,0.00055342,120]
[340857259,1729950654161,-500.0,0.00055342,120]
[340857260,1729950654170,-537.36075965,0.00055342,120]
[340857261,1729950654179,-500.0,0.00055342,120]
[340857262,1729950654189,-500.0,0.00055342,120]
[340857263,1729950654198,-284.45982897,0.00055342,120]
[340857264,1729950654207,-500.0,0.00055342,120]
[340857265,1729950654216,-500.0,0.00055342,120]
[340857266,1729950654226,-500.0,0.00055342,120]
[340857267,1729950654235,-500.0,0.00055342,120]
[340857268,1729950654244,-500.0,0.00055342,120]
[340857269,1729950654254,-500.0,0.00055342,120]
[340857270,1729950654263,-500.0,0.00055342,120]
[340857271,1729950654272,-500.0,0.00055342,120]
[340857272,1729950654281,-387.63684708,0.00055342,120]
[340857273,1729950654290,-558.32,0.00055342,120]
[340857274,1729950654299,-500.0,0.00055342,120]
[340857275,1729950654308,-500.0,0.00055342,120]
[340857276,1729950654318,-560.50058425,0.00055342,120]
[340857277,1729950654328,-553.9030917,0.00055342,120]
[340857278,1729950654337,-558.11520942,0.00055342,120]
[340857279,1729950654346,-500.0,0.00055342,120]
[340857280,1729950654355,-500.0,0.00055342,120]
[340857281,1729950654364,-638.39702695,0.00055342,120]
[340857282,1729950654374,-500.0,0.00055342,120]
[340857283,1729950654386,-530.93748455,0.00055342,120]
[340857284,1729950654395,-500.0,0.00055342,120]
[340857285,1729950654404,-253.40259229,0.00055342,120]
[340857286,1729950654413,-500.0,0.00055342,120]
[340857287,1729950654422,-500.0,0.00055342,120]
[340857288,1729950654432,-323.40232208,0.000554,2]
[340857289,1729950654441,-5991.88796222,0.000554,2]
[340857290,1729950654450,-269.96122299,0.000554,2]
[340857291,1729950654459,-1603.73118156,0.000554,2]
[340857292,1729950654468,-500.0,0.0005589,120]
[340857293,1729950654477,-500.0,0.0005589,120]
[340857294,1729950654486,-500.0,0.0005589,120]
[340857295,1729950654495,-151.0,0.0005589,7]
[340857296,1729950654504,-534.82278527,0.0005589,120]
[340857297,1729950654513,-500.0,0.0005589,120]
[340857298,1729950654522,-631.76381391,0.0005589,120]
[340857299,1729950654531,-500.0,0.0005589,120]
[340857300,1729950654541,-500.0,0.0005589,120]
[340857301,1729950654550,-500.0,0.0005589,120]
[340857302,1729950654559,-500.0,0.0005589,120]
[340857303,1729950654568,-500.0,0.0005589,120]
[340857304,1729950654578,-500.0,0.0005589,120]
[340857305,1729950654587,-500.0,0.0005589,120]
[340857306,1729950654596,-500.0,0.0005589,120]
[340857307,1729950654605,-500.0,0.0005589,120]
[340857308,1729950654614,-500.0,0.0005589,120]
[340857309,1729950654624,-515.17816376,0.0005589,120]
[340857310,1729950654633,-500.0,0.0005589,120]
[340857311,1729950654642,-500.0,0.0005589,120]
[340857312,1729950654651,-500.0,0.0005589,120]
[340857313,1729950654661,-527.83318379,0.0005589,120]
[340857314,1729950654670,-500.0,0.0005589,60]
[340857315,1729950654679,-404.7676732,0.0005589,120]
[340857316,1729950654688,-500.0,0.0005589,120]
[340857317,1729950654696,-500.0,0.0005589,120]
[340857318,1729950654705,-500.0,0.0005589,120]
[340857319,1729950654714,-674.51745021,0.0005589,120]
[340857320,1729950654723,-151.0,0.0005589,120]
[340857321,1729950654733,-500.0,0.0005589,120]
[340857322,1729950654743,-500.0,0.0005589,120]
[340857323,1729950654752,-519.07394919,0.0005589,120]
[340857324,1729950654761,-500.0,0.0005589,120]
[340857325,1729950654771,-500.0,0.0005589,120]
[340857326,1729950654780,-500.0,0.0005589,120]
[340857327,1729950654789,-500.0,0.0005589,120]
[340857328,1729950654798,-500.0,0.0005589,120]
[340857329,1729950654808,-500.0,0.0005589,120]
[340857330,1729950654817,-500.0,0.0005589,120]
[340857331,1729950654826,-500.0,0.0005589,120]
[340857332,1729950654835,-500.0,0.0005589,120]
[340857333,1729950654845,-500.0,0.0005589,120]
[340857334,1729950654854,-151.0,0.0005589,7]
[340857335,1729950654863,-500.0,0.0005589,120]
[340857336,1729950654874,-499.10845876,0.0005589,120]
[340857337,1729950654887,-193.430116,0.0005589,120]
[340857338,1729950654896,-500.0,0.0005589,120]
[340857339,1729950654906,-193.430116,0.0005589,120]
[340857340,1729950654914,-500.0,0.0005589,120]
[340857341,1729950654924,-500.0,0.0005589,120]
[340857342,1729950654934,-500.0,0.0005589,120]
[340857343,1729950654944,-500.0,0.0005589,120]
[340857344,1729950654953,-321.00999423,0.0005589,120]
[340857345,1729950654963,-500.0,0.0005589,120]
[340857346,1729950654972,-500.0,0.0005589,120]
[340857347,1729950654981,-500.0,0.0005589,120]
[340857348,1729950654990,-500.0,0.0005589,120]
[340857349,1729950655000,-500.0,0.0005589,120]
[340857350,1729950655011,-500.0,0.0005589,120]
[340857351,1729950655025,-500.0,0.0005589,120]
[340857352,1729950655034,-500.0,0.0005589,120]
[340857353,1729950655045,-195.5052407,0.0005589,120]
[340857354,1729950655055,-622.21,0.0005589,120]
[340857355,1729950655065,-500.0,0.0005589,7]
[340857356,1729950655074,-500.0,0.0005589,120]
[340857357,1729950655083,-600.93757321,0.0005589,120]
[340857358,1729950655093,-500.0,0.0005589,120]
[340857359,1729950655103,-500.0,0.0005589,120]
[340857360,1729950655112,-500.0,0.0005589,120]
[340857361,1729950655121,-532.23420356,0.0005589,120]
[340857362,1729950655131,-544.56,0.0005589,120]
[340857363,1729950655140,-539.953584,0.0005589,120]
[340857364,1729950655149,-638.8893196,0.0005589,120]
[340857365,1729950655158,-500.0,0.0005589,120]
[340857366,1729950655168,-196.377902,0.0005589,120]
[340857367,1729950655177,-646.96,0.0005589,120]
[340857368,1729950655187,-500.0,0.0005589,120]
[340857369,1729950655197,-500.0,0.0005589,120]
[340857370,1729950655207,-539.953584,0.0005589,120]
[340857371,1729950655216,-500.0,0.0005589,120]
[340857372,1729950655226,-500.0,0.0005589,120]
[340857373,1729950655236,-515.4144948,0.0005589,120]
[340857374,1729950655246,-500.0,0.0005589,25]
[340857375,1729950655255,-500.0,0.0005589,120]
[340857376,1729950655264,-574.84715333,0.0005589,120]
[340857377,1729950655275,-500.0,0.0005589,120]
[340857378,1729950655284,-500.0,0.0005589,120]
[340857379,1729950655294,-500.0,0.0005589,120]
[340857380,1729950655303,-500.0,0.0005589,120]
[340857381,1729950655312,-500.0,0.0005589,120]
[340857382,1729950655321,-500.0,0.0005589,120]
[340857383,1729950655331,-500.0,0.0005589,120]
[340857384,1729950655341,-500.0,0.0005589,120]
[340857385,1729950655350,-436.71901263,0.0005589,120]
[340857386,1729950655359,-505.00117474,0.0005589,120]
[340857387,1729950655368,-516.05375127,0.0005589,120]
[340857388,1729950655378,-500.0,0.0005589,120]
[340857389,1729950655473,-227.93398393,0.0005589,120]
[340857390,1729950655483,-174.476946,0.0005589,120]
[340857391,1729950655493,-1000.0,0.0005589,120]
[340857392,1729950655502,-575.51540714,0.0005589,120]
[340857393,1729950655511,-174.476946,0.0005589,120]
[340857394,1729950655521,-500.0,0.0005589,120]
[340857395,1729950655530,-500.0,0.0005589,120]
[340857396,1729950655540,-500.0,0.0005589,120]
[340857397,1729950655549,-416.89902863,0.0005589,120]
[340857398,1729950655558,-517.23918602,0.0005589,2]
[340857399,1729950655568,-1062.59,0.0005589,120]
[340857400,1729950655579,-500.0,0.0005589,120]
[340857401,1729950655588,-500.0,0.0005589,120]
[340857402,1729950655598,-500.0,0.0005589,120]
[340857403,1729950655607,-500.0,0.0005589,120]
[340857404,1729950655616,-627.65785537,0.0005589,120]
[340857405,1729950655626,-500.0,0.0005589,120]
[340857406,1729950655636,-500.0,0.0005589,120]
[340857407,1729950655645,-286.9481115,0.0005589,120]
[340857408,1729950655655,-500.0,0.0005589,120]
[340857409,1729950655665,-1368.19,0.0005589,120]
[340857410,1729950655675,-500.0,0.0005589,120]
[340857411,1729950655684,-151.0,0.0005589,30]
[340857412,1729950655694,-1822.42,0.0005589,120]
[340857413,1729950655703,-500.0,0.0005589,120]
[340857414,1729950655713,-875.75,0.0005589,120]
[340857415,1729950655722,-2994.32,0.0005589,120]
[340857416,1729950655732,-500.0,0.0005589,120]
[340857417,1729950655741,-500.0,0.0005589,120]
[340857418,1729950655751,-500.0,0.0005589,120]
[340857419,1729950655760,-1119.44,0.0005589,120]
[340857420,1729950655770,-500.0,0.0005589,120]
[340857421,1729950655780,-500.0,0.0005589,120]
[340857422,1729950655789,-191.92847321,0.0005589,120]
[340857423,1729950655798,-500.0,0.0005589,120]
[340857424,1729950655807,-151.0,0.0005589,120]
[340857425,1729950655817,-500.0,0.0005589,120]
[340857426,1729950655827,-1723.29,0.0005589,120]
[340857427,1729950655836,-500.0,0.0005589,120]
[340857428,1729950655846,-500.0,0.0005589,120]
[340857429,1729950655857,-500.0,0.0005589,120]
[340857430,1729950655867,-853.38,0.0005589,21]
[340857431,1729950655879,-1000.0,0.0005589,120]
[340857432,1729950655888,-500.0,0.0005589,120]
[340857433,1729950655898,-500.0,0.0005589,120]
[340857434,1729950655907,-500.0,0.0005589,120]
[340857435,1729950655916,-500.0,0.0005589,120]
[340857436,1729950655926,-500.0,0.0005589,120]
[340857437,1729950655935,-500.0,0.0005589,120]
[340857438,1729950655944,-500.0,0.0005589,120]
[340857439,1729950655953,-173.5965381,0.0005589,120]
[340857440,1729950655962,-538.1770071,0.0005589,120]
[340857441,1729950655972,-562.895145,0.0005589,120]
[340857442,1729950655981,-500.0,0.0005589,120]
[340857443,1729950655991,-500.0,0.0005589,120]
[340857444,1729950656001,-640.21323674,0.0005589,120]
[340857445,1729950656010,-556.59595839,0.0005589,120]
[340857446,1729950656023,-500.0,0.0005589,120]
[340857447,1729950656033,-521.88054477,0.0005589,120]
[340857448,1729950656042,-567.28115624,0.0005589,120]
[340857449,1729950656051,-347.749839,0.0005589,120]
[340857450,1729950656061,-500.0,0.0005589,120]
[340857451,1729950656070,-535.06232597,0.0005589,120]
[340857452,1729950656079,-500.0,0.0005589,120]
[340857453,1729950656088,-500.0,0.0005589,120]
[340857454,1729950656098,-5331.28,0.0005589,120]
[340857455,1729950656107,-194.32640883,0.0005589,120]
[340857456,1729950656117,-500.0,0.0005589,120]
[340857457,1729950656128,-500.0,0.0005589,120]
[340857458,1729950656138,-526.66242941,0.0005589,120]
[340857459,1729950656147,-158.30560468,0.0005589,120]
[340857460,1729950656158,-500.0,0.0005589,120]
[340857461,1729950656168,-500.0,0.0005589,120]
[340857462,1729950656177,-755.58,0.0005589,120]
[340857463,1729950656187,-500.0,0.0005589,120]
[340857464,1729950656196,-500.0,0.0005589,120]
[340857465,1729950656206,-396.6127084,0.0005589,120]
[340857466,1729950656215,-1730.63,0.0005589,120]
[340857467,1729950656224,-500.0,0.0005589,120]
[340857468,1729950656234,-500.0,0.0005589,120]
[340857469,1729950656244,-916.92,0.0005589,3]
[340857470,1729950656254,-321.51405641,0.0005589,120]
[340857471,1729950656264,-894.21,0.0005589,120]
[340857472,1729950656273,-500.0,0.0005589,120]
[340857473,1729950656283,-572.11256083,0.0005589,120]
[340857474,1729950656293,-500.0,0.0005589,120]
[340857475,1729950656302,-500.0,0.0005589,120]
[340857476,1729950656312,-2988.0,0.0005589,120]
[340857477,1729950656322,-500.0,0.0005589,120]
[340857478,1729950656332,-500.0,0.0005589,120]
[340857479,1729950656341,-500.0,0.0005589,120]
[340857480,1729950656351,-500.0,0.0005589,120]
[340857481,1729950656360,-500.0,0.0005589,120]
[340857482,1729950656369,-200.69744561,0.0005589,120]
[340857483,1729950656379,-500.0,0.0005589,120]
[340857484,1729950656389,-500.0,0.0005589,120]
[340857485,1729950656399,-528.34717944,0.0005589,120]
[340857486,1729950656418,-308.05913497,0.0005589,120]
[340857487,1729950656427,-414.66987019,0.0005589,120]
[340857488,1729950656437,-500.0,0.0005589,120]
[340857489,1729950656448,-535.95847007,0.0005589,120]
[340857490,1729950656457,-500.0,0.0005589,120]
[340857491,1729950656467,-500.0,0.0005589,120]
[340857492,1729950656476,-960.37,0.0005589,120]
[340857493,1729950656486,-1175.82,0.0005589,120]
[340857494,1729950656495,-604.4,0.0005589,120]
[340857495,1729950656505,-500.0,0.0005589,120]
[340857496,1729950656515,-500.0,0.0005589,120]
[340857497,1729950656524,-535.05321862,0.0005589,120]
[340857498,1729950656534,-245.19034305,0.0005589,120]
[340857499,1729950656543,-500.0,0.0005589,120]
[340857500,1729950656552,-500.0,0.0005589,120]
[340857501,1729950656562,-500.0,0.0005589,120]
[340857502,1729950656571,-500.0,0.0005589,120]
[340857503,1729950656580,-1014.35742443,0.0005589,120]
[340857504,1729950656590,-500.0,0.0005589,120]
[340857505,1729950656599,-500.0,0.0005589,120]
[340857506,1729950656609,-2385.55,0.0005589,120]
[340857507,1729950656619,-500.0,0.0005589,120]
[340857508,1729950656629,-172.77415638,0.0005589,120]
[340857509,1729950656639,-500.0,0.0005589,120]
[340857510,1729950656648,-500.0,0.0005589,120]
[340857511,1729950656658,-539.46111607,0.0005589,120]
[340857512,1729950656667,-500.0,0.0005589,120]
[340857513,1729950656677,-500.0,0.0005589,120]
[340857514,1729950656686,-500.0,0.0005589,120]
[340857515,1729950656695,-500.0,0.0005589,120]
[340857516,1729950656704,-500.0,0.0005589,120]
[340857517,1729950656714,-558.32,0.0005589,120]
[340857518,1729950656723,-500.0,0.0005589,120]
[340857519,1729950656733,-500.0,0.0005589,120]
[340857520,1729950656743,-500.0,0.0005589,120]
[340857521,1729950656760,-500.0,0.0005589,120]
[340857522,1729950656770,-393.53552851,0.0005589,120]
[340857523,1729950656779,-500.0,0.0005589,120]
[340857524,1729950656789,-511.09894157,0.0005589,120]
[340857525,1729950656798,-500.0,0.0005589,120]
[340857526,1729950656808,-163.43,0.0005589,2]
[340857527,1729950656817,-50000.0,0.000559,30]
[340857528,1729950656827,-839.73,0.000559,60]
[340857529,1729950656836,-151.0,0.000559,120]
[340857530,1729950656846,-174.362886,0.000559,120]
[340857531,1729950656855,-174.362886,0.000559,120]
[340857532,1729950656865,-169.150758,0.000559,120]
[340857533,1729950656875,-169.150758,0.000559,120]
[340857534,1729950656884,-169.544829,0.000559,120]
[340857535,1729950656894,-169.544829,0.000559,120]
[340857536,1729950656903,-186.98732,0.000559,120]
[340857537,1729950656913,-186.98732,0.000559,120]
[340857538,1729950656922,-151.0,0.000559,120]
[340857539,1729950656931,-223.153046,0.000559,120]
[340857540,1729950656941,-223.153046,0.000559,120]
[340857541,1729950656950,-226.895858,0.000559,120]
[340857542,1729950656959,-226.895858,0.000559,120]
[340857543,1729950656969,-151.0,0.000559,120]
[340857544,1729950656978,-966.73,0.00055985,2]
[340857545,1729950656988,-507.76,0.00055997,30]
[340857546,1729950656997,-250.0,0.00056,30]
[340857547,1729950657006,-1000.0,0.00056,120]
[340857548,1729950657020,-152958.0434394,0.00056,30]
[340857549,1729950657030,-1252.0,0.00056038,120]
[340857550,1729950657039,-1000.0,0.00056208,2]
[340857551,1729950657050,-1000.0,0.00056208,2]
[340857552,1729950657062,-1000.0,0.00056208,2]
[340857553,1729950657071,-1000.0,0.00056208,2]
[340857554,1729950657080,-1000.0,0.00056208,2]
[340857555,1729950657090,-1000.0,0.00056208,2]
[340857556,1729950657099,-1000.0,0.00056208,2]
[340857557,1729950657108,-1000.0,0.00056208,2]
[340857558,1729950657117,-1000.0,0.00056208,2]
[340857559,1729950657127,-1000.0,0.00056208,2]
[340857560,1729950657136,-1000.0,0.00056208,2]
[340857561,1729950657145,-782.0,0.00056208,2]
[340857562,1729950657155,-1000.0,0.00056322,120]
[340857563,1729950657165,-152.0,0.00056423,6]
[340857564,1729950657174,-500.0,0.00056438,120]
[340857565,1729950657184,-500.0,0.00056438,120]
[340857566,1729950657193,-500.0,0.00056438,120]
[340857567,1729950657203,-151.0,0.00056438,7]
[340857568,1729950657294,-500.0,0.00056438,120]
[340857569,1729950657304,-500.0,0.00056438,120]
[340857570,1729950657313,-500.0,0.00056438,120]
[340857571,1729950657324,-500.0,0.00056438,120]
[340857572,1729950657335,-500.0,0.00056438,120]
[340857573,1729950657345,-500.0,0.00056438,120]
[340857574,1729950657355,-166.6927357,0.00056438,120]
[340857575,1729950657365,-500.0,0.00056438,120]
[340857576,1729950657375,-500.0,0.00056438,120]
[340857577,1729950657385,-500.0,0.00056438,120]
[340857578,1729950657394,-500.0,0.00056438,120]
[340857579,1729950657403,-500.0,0.00056438,120]
[340857580,1729950657413,-500.0,0.00056438,120]
[340857581,1729950657422,-500.0,0.00056438,120]
[340857582,1729950657431,-500.0,0.00056438,60]
[340857583,1729950657441,-500.0,0.00056438,120]
[340857584,1729950657450,-578.72918883,0.00056438,120]
[340857585,1729950657460,-500.0,0.00056438,120]
[340857586,1729950657469,-500.0,0.00056438,120]
[340857587,1729950657478,-500.0,0.00056438,120]
[340857588,1729950657487,-500.0,0.00056438,120]
[340857589,1729950657496,-500.0,0.00056438,120]
[340857590,1729950657506,-500.0,0.00056438,120]
[340857591,1729950657515,-500.0,0.00056438,120]
[340857592,1729950657524,-573.44000103,0.00056438,120]
[340857593,1729950657533,-500.0,0.00056438,120]
[340857594,1729950657542,-500.0,0.00056438,120]
[340857595,1729950657551,-500.0,0.00056438,120]
[340857596,1729950657561,-534.93159912,0.00056438,120]
[340857597,1729950657570,-515.39696797,0.00056438,120]